fUSD/lending_fUSD_20250521
["ID","MTS","AMOUNT","RATE_DAILY","PERIOD"]
[361866175,1747852277299,-420.0,0.00038465,30]
[361866176,1747852277309,-420.0,0.00038465,30]
[361866177,1747852277319,-420.0,0.00038465,30]
[361866178,1747852277330,-519.72749025,0.00038465,30]
[361866179,1747852277340,-1355.93,0.00038465,30]
[361866180,1747852277349,-238.10994108,0.00038465,30]
[361866181,1747852277358,-151.0,0.00038465,14]
[361866182,1747852277370,-1034.23,0.00038465,30]
[361866183,1747852277379,-420.0,0.00038465,30]
[361866184,1747852277389,-151.0,0.00038465,14]
[361866185,1747852277398,-420.0,0.00038465,30]
[361866186,1747852277408,-1212.17,0.00038465,30]
[361866187,1747852277418,-489.93,0.00038465,30]
[361866188,1747852277427,-456.5,0.00038465,30]
[361866189,1747852277436,-420.0,0.00038465,30]
[361866190,1747852277446,-420.0,0.00038465,30]
[361866191,1747852277456,-420.0,0.00038465,30]
[361866192,1747852277466,-1100.74,0.00038465,30]
[361866193,1747852277476,-1434.95,0.00038465,30]
[361866194,1747852277486,-572.41,0.00038465,30]
[361866195,1747852277497,-420.0,0.00038465,30]
[361866196,1747852277506,-782.45,0.00038465,30]
[361866197,1747852277516,-817.62,0.00038465,30]
[361866198,1747852277525,-1000.86,0.00038465,30]
[361866199,1747852277535,-420.0,0.00038465,16]
[361866200,1747852277545,-731.06,0.00038465,30]
[361866201,1747852277555,-420.0,0.00038465,30]
[361866202,1747852277565,-420.0,0.00038465,30]
[361866203,1747852277575,-1191.06,0.00038465,30]
[361866204,1747852277585,-1767.32,0.00038465,30]
[361866205,1747852277594,-420.0,0.00038465,30]
[361866206,1747852277604,-151.0,0.00038465,14]
[361866207,1747852277617,-151.0,0.00038465,14]
[361866208,1747852277628,-151.0,0.00038465,14]
[361866209,1747852277637,-537.33,0.00038465,30]
[361866210,1747852277647,-772.1,0.00038465,30]
[361866211,1747852277656,-796.16,0.00038465,30]
[361866212,1747852277667,-151.0,0.00038465,14]
[361866213,1747852277677,-151.0,0.00038465,14]
[361866214,1747852277687,-559.25,0.00038465,30]
[361866215,1747852277697,-1326.76,0.00038465,30]
[361866216,1747852277708,-420.0,0.00038465,30]
[361866217,1747852277718,-420.0,0.00038465,30]
[361866218,1747852277728,-1655.92,0.00038465,30]
[361866219,1747852277738,-1337.16,0.00038465,30]
[361866220,1747852277748,-789.43,0.00038465,30]
[361866221,1747852277758,-831.34,0.00038465,30]
[361866222,1747852277768,-151.0,0.00038465,14]
[361866223,1747852277777,-420.0,0.00038465,30]
[361866224,1747852277786,-494.72,0.00038465,30]
[361866225,1747852277796,-420.0,0.00038465,30]
[361866226,1747852277807,-420.0,0.00038465,30]
[361866227,1747852277817,-2550.12,0.00038465,30]
[361866228,1747852277827,-1111.27,0.00038465,30]
[361866229,1747852277836,-526.17,0.00038465,30]
[361866230,1747852277846,-1569.602276,0.00038465,30]
[361866231,1747852277856,-808.42,0.00038465,30]
[361866232,1747852277868,-420.0,0.00038465,5]
[361866233,1747852277878,-524.69,0.00038465,30]
[361866234,1747852277888,-441.63,0.00038465,30]
[361866235,1747852277898,-420.0,0.00038465,30]
[361866236,1747852277909,-420.0,0.00038465,30]
[361866237,1747852277918,-1116.68,0.00038465,30]
[361866238,1747852277928,-469.89,0.00038465,30]
[361866239,1747852277937,-665.01,0.00038465,30]
[361866240,1747852277947,-420.0,0.00038465,30]
[361866241,1747852277956,-420.0,0.00038465,30]
[361866242,1747852277967,-420.0,0.00038465,30]
[361866243,1747852277976,-420.0,0.00038465,30]
[361866244,1747852277985,-420.0,0.00038465,30]
[361866245,1747852277995,-1343.09,0.00038465,30]
[361866246,1747852278005,-641.09,0.00038465,30]
[361866247,1747852278018,-420.0,0.00038465,30]
[361866248,1747852278028,-420.0,0.00038465,30]
[361866249,1747852278037,-2655.89,0.00038465,30]
[361866250,1747852278047,-1157.75,0.00038465,30]
[361866251,1747852278058,-420.0,0.00038465,30]
[361866252,1747852278068,-420.0,0.00038465,30]
[361866253,1747852278078,-420.0,0.00038465,30]
[361866254,1747852278089,-420.0,0.00038465,30]
[361866255,1747852278099,-1758.84,0.00038465,30]
[361866256,1747852278108,-420.0,0.00038465,30]
[361866257,1747852278120,-420.0,0.00038465,30]
[361866258,1747852278129,-568.63,0.00038465,30]
[361866259,1747852278140,-1155.6,0.00038465,30]
[361866260,1747852278149,-420.0,0.00038465,30]
[361866261,1747852278158,-543.52,0.00038465,30]
[361866262,1747852278168,-420.0,0.00038465,30]
[361866263,1747852278178,-420.0,0.00038465,30]
[361866264,1747852278190,-1920.37,0.00038465,30]
[361866265,1747852278200,-1069.06,0.00038465,30]
[361866266,1747852278210,-420.0,0.00038465,30]
[361866267,1747852278219,-420.0,0.00038465,30]
[361866268,1747852278229,-420.0,0.00038465,30]
[361866269,1747852278239,-420.0,0.00038465,30]
[361866270,1747852278250,-420.0,0.00038465,30]
[361866271,1747852278260,-1146.94,0.00038465,30]
[361866272,1747852278270,-420.0,0.00038465,30]
[361866273,1747852278280,-1239.93,0.00038465,30]
[361866274,1747852278290,-1569.29,0.00038465,30]
[361866275,1747852278299,-420.0,0.00038465,30]
[361866276,1747852278309,-464.91,0.00038465,30]
[361866277,1747852278319,-706.99,0.00038465,30]
[361866278,1747852278328,-1141.16,0.00038465,30]
[361866279,1747852278338,-420.0,0.00038465,30]
[361866280,1747852278348,-1562.32,0.00038465,30]
[361866281,1747852278357,-429.02,0.00038465,30]
[361866282,1747852278367,-1616.78,0.00038465,30]
[361866283,1747852278377,-2913.46,0.00038465,30]
[361866284,1747852278386,-444.61,0.00038465,30]
[361866285,1747852278396,-454.55,0.00038465,30]
[361866286,1747852278406,-458.47,0.00038465,30]
[361866287,1747852278416,-586.2,0.00038465,30]
[361866288,1747852278426,-459.51,0.00038465,30]
[361866289,1747852278435,-420.0,0.00038465,30]
[361866290,1747852278445,-1303.3,0.00038465,30]
[361866291,1747852278455,-538.77713264,0.00038465,30]
[361866292,1747852278466,-420.0,0.00038465,30]
[361866293,1747852278476,-996.12,0.00038465,30]
[361866294,1747852278486,-420.0,0.00038465,30]
[361866295,1747852278496,-857.61,0.00038465,30]
[361866296,1747852278505,-1256.87,0.00038465,30]
[361866297,1747852278516,-420.0,0.00038465,30]
[361866298,1747852278525,-420.0,0.00038465,30]
[361866299,1747852278535,-1833.02,0.00038465,30]
[361866300,1747852278545,-169.31811339,0.00038465,30]
[361866301,1747852278554,-420.0,0.00038465,30]
[361866302,1747852278564,-1114.44,0.00038465,30]
[361866303,1747852278574,-420.0,0.00038465,30]
[361866304,1747852278584,-1072.13,0.00038465,30]
[361866305,1747852278594,-420.0,0.00038465,30]
[361866306,1747852278604,-420.0,0.00038465,30]
[361866307,1747852278614,-783.81,0.00038465,30]
[361866308,1747852278624,-677.92,0.00038465,30]
[361866309,1747852278635,-420.0,0.00038465,30]
[361866310,1747852278644,-1363.37,0.00038465,30]
[361866311,1747852278654,-587.7,0.00038465,30]
[361866312,1747852278665,-420.0,0.00038465,30]
[361866313,1747852278674,-1878.12,0.00038465,30]
[361866314,1747852278685,-164.58640745,0.00038465,30]
[361866315,1747852278695,-609.22,0.00038465,30]
[361866316,1747852278706,-717.41,0.00038465,30]
[361866317,1747852278716,-1560.53,0.00038465,30]
[361866318,1747852278726,-628.74,0.00038465,30]
[361866319,1747852278736,-794.93,0.00038465,30]
[361866320,1747852278747,-420.0,0.00038465,30]
[361866321,1747852278757,-923.33,0.00038465,30]
[361866322,1747852278767,-2162.51,0.00038465,30]
[361866323,1747852278778,-1173.02,0.00038465,30]
[361866324,1747852278788,-1377.67,0.00038465,30]
[361866325,1747852278798,-445.748047,0.00038465,14]
[361866326,1747852278808,-445.748047,0.00038465,14]
[361866327,1747852278819,-445.748047,0.00038465,14]
[361866328,1747852278830,-151.0,0.00038465,14]
[361866329,1747852278840,-1336.66,0.00038465,30]
[361866330,1747852278850,-151.0,0.00038465,14]
[361866331,1747852278861,-420.0,0.00038465,30]
[361866332,1747852278871,-151.0,0.00038465,14]
[361866333,1747852278881,-420.0,0.00038465,30]
[361866334,1747852278891,-445.748047,0.00038465,14]
[361866335,1747852278902,-445.748047,0.00038465,14]
[361866336,1747852278912,-151.0,0.00038465,14]
[361866337,1747852278922,-420.0,0.00038465,30]
[361866338,1747852278933,-151.0,0.00038465,14]
[361866339,1747852278943,-445.748047,0.00038465,14]
[361866340,1747852278954,-151.0,0.00038465,14]
[361866341,1747852278964,-420.0,0.00038465,30]
[361866342,1747852278974,-420.0,0.00038465,30]
[361866343,1747852278985,-586.44,0.00038465,30]
[361866344,1747852278994,-2000.43,0.00038465,30]
[361866345,1747852279005,-1093.42,0.00038465,30]
[361866346,1747852279018,-420.0,0.00038465,30]
[361866347,1747852279027,-645.77,0.00038465,30]
[361866348,1747852279038,-1658.84,0.00038465,30]
[361866349,1747852279048,-420.0,0.00038465,30]
[361866350,1747852279059,-420.0,0.00038465,30]
[361866351,1747852279069,-352.23073458,0.00038465,30]
[361866352,1747852279079,-420.0,0.00038465,30]
[361866353,1747852279092,-420.0,0.00038465,30]
[361866354,1747852279102,-420.0,0.00038465,30]
[361866355,1747852279112,-420.0,0.00038465,30]
[361866356,1747852279124,-1297.28,0.00038465,30]
[361866357,1747852279134,-1361.96,0.00038465,30]
[361866358,1747852279144,-420.0,0.00038465,30]
[361866359,1747852279154,-420.0,0.00038465,30]
[361866360,1747852279165,-739.98,0.00038465,30]
[361866361,1747852279174,-420.0,0.00038465,30]
[361866362,1747852279184,-420.0,0.00038465,30]
[361866363,1747852279194,-420.0,0.00038465,30]
[361866364,1747852279204,-1712.78,0.00038465,30]
[361866365,1747852279213,-614.3,0.00038465,30]
[361866366,1747852279223,-1355.51,0.00038465,30]
[361866367,1747852279233,-690.92,0.00038465,30]
[361866368,1747852279244,-1064.47,0.00038465,30]
[361866369,1747852279254,-352.28391481,0.00038465,30]
[361866370,1747852279264,-641.93,0.00038465,30]
[361866371,1747852279274,-664.69,0.00038465,30]
[361866372,1747852279285,-420.0,0.00038465,3]
[361866373,1747852279295,-420.0,0.00038465,30]
[361866374,1747852279305,-1311.7,0.00038465,30]
[361866375,1747852279316,-483.69,0.00038465,30]
[361866376,1747852279326,-1013.37,0.00038465,30]
[361866377,1747852279337,-420.0,0.00038465,30]
[361866378,1747852279347,-444.34,0.00038465,30]
[361866379,1747852279357,-420.0,0.00038465,30]
[361866380,1747852279369,-420.0,0.00038465,30]
[361866381,1747852279379,-813.86,0.00038465,30]
[361866382,1747852279389,-420.0,0.00038465,30]
[361866383,1747852279400,-420.0,0.00038465,30]
[361866384,1747852279411,-420.0,0.00038465,30]
[361866385,1747852279421,-712.64,0.00038465,30]
[361866386,1747852279431,-420.0,0.00038465,30]
[361866387,1747852279441,-420.0,0.00038465,30]
[361866388,1747852279451,-2103.22,0.00038465,30]
[361866389,1747852279461,-420.0,0.00038465,30]
[361866390,1747852279470,-151.0,0.00038465,14]
[361866391,1747852279480,-420.0,0.00038465,30]
[361866392,1747852279490,-151.0,0.00038465,14]
[361866393,1747852279500,-151.0,0.00038465,14]
[361866394,1747852279510,-522.16,0.00038465,30]
[361866395,1747852279519,-420.0,0.00038465,30]
[361866396,1747852279529,-420.0,0.00038465,30]
[361866397,1747852279539,-510.57,0.00038465,30]
[361866398,1747852279548,-1110.41,0.00038465,30]
[361866399,1747852279558,-3282.45,0.00038465,30]
[361866400,1747852279569,-420.0,0.00038465,30]
[361866401,1747852279579,-420.0,0.00038465,30]
[361866402,1747852279589,-673.59,0.00038465,30]
[361866403,1747852279598,-420.0,0.00038465,30]
[361866404,1747852279610,-420.0,0.00038465,30]
[361866405,1747852279620,-568.59311033,0.00038465,30]
[361866406,1747852279630,-965.83,0.00038465,30]
[361866407,1747852279640,-429.59,0.00038465,30]
[361866408,1747852279650,-658.86,0.00038465,30]
[361866409,1747852279660,-420.0,0.00038465,30]
[361866410,1747852279670,-420.0,0.00038465,30]
[361866411,1747852279680,-420.0,0.00038465,30]
[361866412,1747852279690,-1017.25,0.00038465,30]
[361866413,1747852279699,-1100.37,0.00038465,30]
[361866414,1747852279709,-455.04,0.00038465,30]
[361866415,1747852279718,-2813.25,0.00038465,30]
[361866416,1747852279728,-420.0,0.00038465,30]
[361866417,1747852279738,-2143.32,0.00038465,30]
[361866418,1747852279748,-638.7,0.00038465,30]
[361866419,1747852279758,-1518.34,0.00038465,30]
[361866420,1747852279768,-2030.29,0.00038465,30]
[361866421,1747852279778,-1337.8,0.00038465,30]
[361866422,1747852279788,-420.0,0.00038465,30]
[361866423,1747852279797,-420.0,0.00038465,30]
[361866424,1747852279807,-379.81586423,0.00038465,2]
[361866425,1747852279817,-919.21,0.00038465,30]
[361866426,1747852279827,-420.0,0.00038465,30]
[361866427,1747852279836,-1016.83,0.00038465,30]
[361866428,1747852279846,-1108.21,0.00038465,30]
[361866429,1747852279856,-454.6,0.00038465,30]
[361866430,1747852279869,-420.0,0.00038465,30]
[361866431,1747852279878,-574.49,0.00038465,30]
[361866432,1747852279888,-1908.19,0.00038465,30]
[361866433,1747852279898,-151.0,0.00038465,14]
[361866434,1747852279908,-151.0,0.00038465,14]
[361866435,1747852279918,-151.0,0.00038465,14]
[361866436,1747852279928,-420.0,0.00038465,30]
[361866437,1747852279938,-955.74,0.00038465,30]
[361866438,1747852279948,-797.13,0.00038465,30]
[361866439,1747852279959,-420.0,0.00038465,30]
[361866440,1747852279968,-1056.36,0.00038465,30]
[361866441,1747852279977,-1603.59,0.00038465,30]
[361866442,1747852279988,-644.31,0.00038465,30]
[361866443,1747852279997,-420.0,0.00038465,30]
[361866444,1747852280008,-420.0,0.00038465,30]
[361866445,1747852280019,-507.42,0.00038465,30]
[361866446,1747852280029,-513.864314,0.00038465,14]
[361866447,1747852280038,-513.864314,0.00038465,14]
[361866448,1747852280048,-513.864314,0.00038465,14]
[361866449,1747852280058,-420.0,0.00038465,30]
[361866450,1747852280068,-420.0,0.00038465,30]
[361866451,1747852280077,-420.0,0.00038465,30]
[361866452,1747852280089,-420.0,0.00038465,30]
[361866453,1747852280099,-513.864314,0.00038465,14]
[361866454,1747852280109,-513.864314,0.00038465,14]
[361866455,1747852280118,-513.864314,0.00038465,14]
[361866456,1747852280127,-420.0,0.00038465,30]
[361866457,1747852280137,-884.999569,0.00038465,14]
[361866458,1747852280146,-330.79685165,0.00038465,30]
[361866459,1747852280155,-1044.28,0.00038465,30]
[361866460,1747852280164,-884.999569,0.00038465,14]
[361866461,1747852280174,-884.999569,0.00038465,14]
[361866462,1747852280184,-151.0,0.00038465,14]
[361866463,1747852280193,-590.41,0.00038465,30]
[361866464,1747852280203,-206.527274,0.00038465,14]
[361866465,1747852280212,-1283.86,0.00038465,30]
[361866466,1747852280221,-615.33,0.00038465,30]
[361866467,1747852280230,-696.28,0.00038465,30]
[361866468,1747852280240,-1637.72,0.00038465,30]
[361866469,1747852280249,-430.4,0.00038465,30]
[361866470,1747852280259,-420.0,0.00038465,30]
[361866471,1747852280268,-730.49,0.00038465,30]
[361866472,1747852280277,-1902.38,0.00038465,30]
[361866473,1747852280287,-594.04,0.00038465,30]
[361866474,1747852280297,-1626.84,0.00038465,30]
[361866475,1747852280306,-420.0,0.00038465,30]
[361866476,1747852280315,-151.99389031,0.00038465,30]
[361866477,1747852280325,-420.0,0.00038465,30]
[361866478,1747852280334,-420.0,0.00038465,30]
[361866479,1747852280344,-420.0,0.00038465,30]
[361866480,1747852280354,-595.22,0.00038465,30]
[361866481,1747852280364,-560.342758,0.00038465,14]
[361866482,1747852280376,-420.0,0.00038465,30]
[361866483,1747852280386,-560.342758,0.00038465,14]
[361866484,1747852280395,-541.8,0.00038465,30]
[361866485,1747852280405,-560.342758,0.00038465,14]
[361866486,1747852280415,-600.65,0.00038465,30]
[361866487,1747852280425,-420.0,0.00038465,30]
[361866488,1747852280434,-2000.0,0.00038465,30]
[361866489,1747852280445,-560.342758,0.00038465,14]
[361866490,1747852280455,-420.0,0.00038465,30]
[361866491,1747852280464,-560.342758,0.00038465,14]
[361866492,1747852280474,-560.342758,0.00038465,14]
[361866493,1747852280483,-420.0,0.00038465,30]
[361866494,1747852280493,-1061.79,0.00038465,30]
[361866495,1747852280502,-844.05,0.00038465,30]
[361866496,1747852280512,-1706.72,0.00038465,30]
[361866497,1747852280521,-420.0,0.00038465,30]
[361866498,1747852280530,-420.0,0.00038465,30]
[361866499,1747852280542,-1000.0,0.00038465,30]
[361866500,1747852280551,-1283.12,0.00038465,30]
[361866501,1747852280560,-1325.33458,0.00038465,14]
[361866502,1747852280569,-1325.33458,0.00038465,14]
[361866503,1747852280578,-420.0,0.00038465,30]
[361866504,1747852280587,-420.0,0.00038465,30]
[361866505,1747852280597,-1385.93,0.00038465,30]
[361866506,1747852280607,-420.0,0.00038465,30]
[361866507,1747852280617,-1325.33458,0.00038465,14]
[361866508,1747852280627,-469.33,0.00038465,30]
[361866509,1747852280636,-1325.33458,0.00038465,14]
[361866510,1747852280646,-1325.33458,0.00038465,14]
[361866511,1747852280656,-515.91127713,0.00038465,30]
[361866512,1747852280666,-485.82,0.00038465,30]
[361866513,1747852280675,-420.0,0.00038465,30]
[361866514,1747852280685,-1317.89,0.00038465,30]
[361866515,1747852280695,-420.0,0.00038465,30]
[361866516,1747852280705,-420.0,0.00038465,30]
[361866517,1747852280715,-420.0,0.00038465,30]
[361866518,1747852280725,-430.076347,0.00038465,14]
[361866519,1747852280734,-430.076347,0.00038465,14]
[361866520,1747852280744,-430.076347,0.00038465,14]
[361866521,1747852280754,-420.0,0.00038465,30]
[361866522,1747852280763,-420.0,0.00038465,30]
[361866523,1747852280773,-420.0,0.00038465,30]
[361866524,1747852280782,-420.0,0.00038465,30]
[361866525,1747852280792,-430.076347,0.00038465,14]
[361866526,1747852280802,-430.076347,0.00038465,14]
[361866527,1747852280811,-420.0,0.00038465,30]
[361866528,1747852280821,-521.75,0.00038465,30]
[361866529,1747852280831,-430.076347,0.00038465,14]
[361866530,1747852280841,-420.0,0.00038465,30]
[361866531,1747852280850,-420.0,0.00038465,30]
[361866532,1747852280860,-444.05,0.00038465,30]
[361866533,1747852280871,-463.68,0.00038465,30]
[361866534,1747852281105,-320.02,0.00038465,30]
[361866535,1747852281115,-1361.07,0.00038465,30]
[361866536,1747852281126,-420.0,0.00038465,30]
[361866537,1747852281135,-420.0,0.00038465,30]
[361866538,1747852281145,-633.02,0.00038465,30]
[361866539,1747852281155,-1821.6,0.00038465,30]
[361866540,1747852281164,-2116.34,0.00038465,30]
[361866541,1747852281174,-1377.38,0.00038465,30]
[361866542,1747852281184,-151.0,0.00038465,14]
[361866543,1747852281193,-151.0,0.00038465,14]
[361866544,1747852281203,-724.94,0.00038465,30]
[361866545,1747852281213,-1043.04,0.00038465,30]
[361866546,1747852281222,-1582.11,0.00038465,30]
[361866547,1747852281232,-194.626108,0.00038465,14]
[361866548,1747852281242,-420.0,0.00038465,30]
[361866549,1747852281253,-420.0,0.00038465,30]
[361866550,1747852281263,-420.08,0.00038465,30]
[361866551,1747852281272,-791.4,0.00038465,30]
[361866552,1747852281282,-599.69,0.00038465,30]
[361866553,1747852281292,-420.0,0.00038465,30]
[361866554,1747852281302,-865.7,0.00038465,30]
[361866555,1747852281312,-1277.08,0.00038465,30]
[361866556,1747852281322,-420.0,0.00038465,30]
[361866557,1747852281332,-420.0,0.00038465,30]
[361866558,1747852281342,-420.0,0.00038465,30]
[361866559,1747852281351,-1445.07,0.00038465,30]
[361866560,1747852281361,-618.99,0.00038465,30]
[361866561,1747852281378,-420.0,0.00038465,30]
[361866562,1747852281388,-420.0,0.00038465,30]
[361866563,1747852281398,-420.0,0.00038465,30]
[361866564,1747852281408,-1672.54,0.00038465,30]
[361866565,1747852281418,-420.0,0.00038465,30]
[361866566,1747852281428,-1577.6,0.00038465,30]
[361866567,1747852281437,-1502.59,0.00038465,30]
[361866568,1747852281448,-1298.88,0.00038465,30]
[361866569,1747852281457,-1268.2,0.00038465,30]
[361866570,1747852281467,-1419.61,0.00038465,30]
[361866571,1747852281476,-420.0,0.00038465,30]
[361866572,1747852281485,-151.0,0.00038465,14]
[361866573,1747852281495,-151.0,0.00038465,14]
[361866574,1747852281504,-183.725109,0.00038465,14]
[361866575,1747852281514,-420.0,0.00038465,30]
[361866576,1747852281523,-850.95,0.00038465,30]
[361866577,1747852281534,-240.74129087,0.00038465,30]
[361866578,1747852281544,-2156.45,0.00038465,30]
[361866579,1747852281553,-420.0,0.00038465,30]
[361866580,1747852281562,-1980.45,0.00038465,30]
[361866581,1747852281572,-420.0,0.00038465,30]
[361866582,1747852281582,-621.17,0.00038465,30]
[361866583,1747852281591,-1921.49,0.00038465,30]
[361866584,1747852281601,-665.2,0.00038465,30]
[361866585,1747852281611,-420.0,0.00038465,30]
[361866586,1747852281624,-420.0,0.00038465,30]
[361866587,1747852281634,-420.0,0.00038465,30]
[361866588,1747852281643,-915.21,0.00038465,30]
[361866589,1747852281653,-420.0,0.00038465,30]
[361866590,1747852281663,-641.18,0.00038465,30]
[361866591,1747852281672,-573.33,0.00038465,30]
[361866592,1747852281681,-420.0,0.00038465,30]
[361866593,1747852281691,-2655.66,0.00038465,30]
[361866594,1747852281700,-420.0,0.00038465,30]
[361866595,1747852281711,-482.97,0.00038465,30]
[361866596,1747852281721,-420.0,0.00038465,30]
[361866597,1747852281731,-444.24,0.00038465,30]
[361866598,1747852281741,-1567.81,0.00038465,30]
[361866599,1747852281751,-420.0,0.00038465,30]
[361866600,1747852281761,-420.0,0.00038465,30]
[361866601,1747852281770,-420.0,0.00038465,30]
[361866602,1747852281780,-739.04,0.00038465,30]
[361866603,1747852281790,-420.0,0.00038465,30]
[361866604,1747852281799,-420.0,0.00038465,30]
[361866605,1747852281809,-1287.15,0.00038465,30]
[361866606,1747852281818,-262.76722267,0.00038465,30]
[361866607,1747852281828,-420.0,0.00038465,30]
[361866608,1747852281838,-2014.15,0.00038465,30]
[361866609,1747852281848,-420.0,0.00038465,30]
[361866610,1747852281858,-420.0,0.00038465,30]
[361866611,1747852281871,-151.0,0.00038465,14]
[361866612,1747852281881,-151.0,0.00038465,14]
[361866613,1747852281891,-1083.76,0.00038465,30]
[361866614,1747852281901,-151.0,0.00038465,14]
[361866615,1747852281910,-151.0,0.00038465,14]
[361866616,1747852281921,-487.72,0.00038465,30]
[361866617,1747852281930,-151.0,0.00038465,14]
[361866618,1747852281940,-420.0,0.00038465,30]
[361866619,1747852281950,-420.0,0.00038465,30]
[361866620,1747852281959,-527.51,0.00038465,30]
[361866621,1747852281969,-420.0,0.00038465,30]
[361866622,1747852281978,-1791.85,0.00038465,30]
[361866623,1747852281988,-756.11,0.00038465,30]
[361866624,1747852281998,-350.401016,0.00038465,14]
[361866625,1747852282009,-350.401016,0.00038465,14]
[361866626,1747852282020,-420.0,0.00038465,30]
[361866627,1747852282030,-420.0,0.00038465,30]
[361866628,1747852282040,-1410.39,0.00038465,30]
[361866629,1747852282051,-350.401016,0.00038465,14]
[361866630,1747852282060,-473.73,0.00038465,30]
[361866631,1747852282070,-350.401016,0.00038465,14]
[361866632,1747852282080,-554.24561025,0.00038465,30]
[361866633,1747852282092,-420.0,0.00038465,30]
[361866634,1747852282102,-5329.41,0.00038465,30]
[361866635,1747852282112,-420.0,0.00038465,30]
[361866636,1747852282123,-420.0,0.00038465,30]
[361866637,1747852282133,-1094.78,0.00038465,30]
[361866638,1747852282142,-420.0,0.00038465,30]
[361866639,1747852282152,-420.0,0.00038465,30]
[361866640,1747852282162,-420.0,0.00038465,30]
[361866641,1747852282172,-420.0,0.00038465,30]
[361866642,1747852282181,-420.0,0.00038465,30]
[361866643,1747852282191,-1420.91,0.00038465,30]
[361866644,1747852282201,-1050.66,0.00038465,30]
[361866645,1747852282210,-461.24,0.00038465,30]
[361866646,1747852282219,-420.0,0.00038465,30]
[361866647,1747852282229,-1284.38,0.00038465,30]
[361866648,1747852282239,-420.0,0.00038465,30]
[361866649,1747852282248,-420.0,0.00038465,30]
[361866650,1747852282258,-1364.74,0.00038465,30]
[361866651,1747852282268,-2024.37,0.00038465,30]
[361866652,1747852282278,-729.48,0.00038465,30]
[361866653,1747852282287,-420.0,0.00038465,30]
[361866654,1747852282296,-420.0,0.00038465,30]
[361866655,1747852282306,-420.0,0.00038465,30]
[361866656,1747852282316,-420.0,0.00038465,30]
[361866657,1747852282326,-420.0,0.00038465,30]
[361866658,1747852282336,-818.81,0.00038465,30]
[361866659,1747852282346,-420.0,0.00038465,30]
[361866660,1747852282356,-864.67,0.00038465,30]
[361866661,1747852282368,-420.0,0.00038465,30]
[361866662,1747852282378,-420.0,0.00038465,30]
[361866663,1747852282388,-3299.78,0.00038465,30]
[361866664,1747852282397,-151.0,0.00038465,14]
[361866665,1747852282407,-420.0,0.00038465,30]
[361866666,1747852282416,-151.0,0.00038465,14]
[361866667,1747852282426,-265.122198,0.00038465,14]
[361866668,1747852282436,-420.0,0.00038465,30]
[361866669,1747852282446,-265.122198,0.00038465,14]
[361866670,1747852282456,-420.0,0.00038465,30]
[361866671,1747852282465,-420.0,0.00038465,30]
[361866672,1747852282474,-957.69,0.00038465,30]
[361866673,1747852282484,-1656.17,0.00038465,30]
[361866674,1747852282494,-570.38,0.00038465,30]